bitfinex/quotes_SOLUSD_20260305
["timestamp","ask_amount","ask_price","bid_price","bid_amount"]
[1772691122720,1.55750667,89.828,89.774,1.76425692]
[1772691122914,1.55750667,89.828,89.779,1.76425692]
[1772691123115,1.55623125,89.826,89.779,1.76425692]
[1772691123307,1.55623125,89.809,89.775,12.90321542]
[1772691123506,1.55623125,89.809,89.775,40.75061168]
[1772691123733,1.55497047,89.82,89.776,1.76425692]
[1772691124914,1.55497047,89.82,89.778,1.76425692]
[1772691125331,12.68846926,89.82,89.778,1.76425692]
[1772691126633,1.55497047,89.82,89.778,1.76425692]
[1772691126833,0.2,89.83,89.781,1.76425692]
[1772691127127,0.2,89.83,89.785,1.76425692]
[1772691127334,1.75127435,89.83,89.785,1.76425692]
[1772691128329,0.2,89.83,89.787,1.76425692]
[1772691129040,1.54888049,89.828,89.787,1.76425692]
[1772691130726,1.5465413,89.819,89.779,1.76425692]
[1772691132024,12.67790208,89.827,89.779,1.76425692]
[1772691132421,1.54425554,89.819,89.779,1.76425692]
[1772691132734,1.54425554,89.817,89.781,1.76425692]
[1772691133939,1.54425554,89.817,89.78,11.13833815]
[1772691134135,1.54313231,89.809,89.773,1.76425692]
[1772691134338,1.54313231,89.809,89.774,11.13908258]
[1772691135241,11.13486549,89.808,89.775,1.76425692]
[1772691135536,12.6739425,89.823,89.775,1.76425692]
[1772691136035,11.13301809,89.823,89.775,1.76425692]
[1772691136945,11.13301809,89.823,89.777,1.76425692]
[1772691137724,12.67150529,89.826,89.777,1.76425692]
[1772691138036,1.53876694,89.825,89.777,1.76425692]
[1772691139219,1.53665875,89.823,89.779,1.82106912]
[1772691140724,11.13288208,89.824,89.778,38.98505201]
[1772691140725,12.86684668,89.83,89.785,1.82106912]
[1772691140933,1.53459871,89.829,89.785,1.82106912]
[1772691141928,11.33224797,89.83,89.787,1.82106912]
[1772691142831,1.53258572,89.829,89.787,1.82106912]
[1772691143231,1.53258572,89.827,89.789,1.82106912]
[1772691145938,38.96335217,89.828,89.79,11.13709767]
[1772691145939,1.52965211,89.825,89.79,11.13709767]
[1772691146140,1.52965211,89.825,89.791,1.82106912]
[1772691148533,1.52589548,89.823,89.792,11.1368496]
[1772691148855,1.52589548,89.823,89.791,1.82106912]
[1772691149054,1.52589548,89.823,89.791,12.95795069]
[1772691150057,1.52589548,89.823,89.792,1.72353219]
[1772691150269,11.33218041,89.83,89.792,1.72353219]
[1772691150639,0.2,89.83,89.794,1.72353219]
[1772691153356,0.2,89.83,89.796,1.72353219]
[1772691154254,6.86710156,89.84,89.799,1.72353219]
[1772691154448,1.52143736,89.861,89.803,1.72353219]
[1772691154652,1.52143736,89.861,89.805,1.72353219]
[1772691155241,1.52057622,89.859,89.805,1.72353219]
[1772691155445,11.12866967,89.858,89.806,38.97289712]
[1772691155648,1.51972497,89.857,89.807,1.72353219]
[1772691157141,1.5188835,89.849,89.807,1.72353219]
[1772691157759,1.5180517,89.847,89.809,1.72353219]
[1772691158982,1.5180517,89.847,89.808,11.13486549]
[1772691158983,11.13015604,89.846,89.811,1.72353219]
[1772691161773,1.5180517,89.847,89.785,0.28432314]
[1772691161774,1.5180517,89.847,89.813,1.72353219]
[1772691162266,11.13015604,89.846,89.813,1.72353219]
[1772691162767,1.5180517,89.847,89.813,1.72353219]
[1772691163561,11.12956826,89.851,89.813,1.72353219]
[1772691163865,11.12956826,89.851,89.815,1.72353219]
[1772691165468,1.51173215,89.852,89.815,1.72353219]
[1772691166064,0.2,89.87,89.792,55.68363745]
[1772691166065,1.51173215,89.849,89.816,11.13387369]
[1772691167050,1.51098249,89.847,89.817,1.72353219]
[1772691168747,1.51098249,89.847,89.795,5.09180491]
[1772691168748,1.51098249,89.847,89.796,1.74278686]
[1772691169969,1.50806895,89.845,89.798,1.74278686]
[1772691172784,1.50597047,89.843,89.8,1.74278686]
[1772691174481,11.12978856,89.849,89.799,38.97593513]
[1772691174482,1.50461135,89.848,89.804,1.74278686]
[1772691174870,1.50461135,89.846,89.806,1.74278686]
[1772691176079,1.50394348,89.839,89.806,1.74278686]
[1772691176284,1.50394348,89.839,89.801,11.13569414]
[1772691176966,1.50328327,89.837,89.802,1.74278686]
[1772691179462,1.50328327,89.837,89.784,3.69383402]
[1772691179463,123.5787777,90.115,89.804,1.74278686]
[1772691179778,1.50134781,89.859,89.804,1.74278686]
[1772691179969,1.50134781,89.849,89.804,1.74278686]
[1772691182288,1.50009427,89.847,89.806,1.74278686]
[1772691184188,11.13015604,89.846,89.808,1.74278686]
[1772691184478,1.49886937,89.845,89.808,1.74278686]
[1772691185296,1.49826744,89.839,89.808,1.74278686]
[1772691185466,1.49767243,89.847,89.808,1.74278686]
[1772691186382,1.49708426,89.845,89.81,1.74278686]
[1772691187570,1.49708426,89.845,89.802,1.74278686]
[1772691189388,12.62493689,89.851,89.804,1.74278686]
[1772691189571,12.62444141,89.855,89.804,1.74278686]
[1772691189882,11.12908145,89.855,89.804,1.74278686]
[1772691190090,1.49535996,89.854,89.804,1.74278686]
[1772691190972,1.49479835,89.849,89.804,1.74278686]
[1772691191168,1.49479835,89.859,89.804,1.74278686]
[1772691191371,12.62346802,89.858,89.806,1.74278686]
[1772691191994,1.49424318,89.857,89.806,1.74278686]
[1772691193291,1.4936944,89.855,89.808,1.74278686]
[1772691194494,1.49261566,89.853,89.81,1.74278686]
[1772691196175,11.12861283,89.859,89.81,1.74278686]
[1772691196875,11.12861283,89.859,89.812,1.74278686]
[1772691197580,12.61965641,89.859,89.812,1.74278686]
[1772691199290,1.49104358,89.859,89.814,1.75468431]
[1772691199482,11.12795475,89.864,89.814,1.75468431]
[1772691201195,1.48952505,89.869,89.814,1.75468431]
[1772691201394,1.48952505,89.869,89.822,2.03900745]
[1772691202395,0.2,89.87,89.822,2.03900745]
[1772691203401,0.2,89.87,89.824,1.75468431]
[1772691203701,0.2,89.87,89.827,2.03900745]
[1772691203909,1e-08,89.87,89.835,1.75468431]
[1772691205103,1e-08,89.87,89.837,1.75468431]
[1772691205508,1e-08,89.87,89.839,1.75468431]
[1772691205509,1.48664142,89.87,89.839,1.75468431]
[1772691206990,1e-08,89.87,89.839,1.75468431]
[1772691207986,1e-08,89.87,89.841,1.7046725]
[1772691210014,1e-08,89.87,89.842,11.13065158]
[1772691210216,1.48438644,89.869,89.833,1.7046725]
[1772691211536,1.4835203,89.867,89.834,11.1316428]
[1772691212816,1.48309468,89.865,89.828,1.7046725]
[1772691212993,3.42515527,89.86,89.827,11.13251026]
[1772691213194,1.48309468,89.859,89.827,11.13251026]
[1772691214099,1.48309468,89.859,89.827,12.83718276]
[1772691214609,3.42515527,89.86,89.828,1.7046725]
[1772691214610,1.48225804,89.857,89.828,1.7046725]
[1772691214815,27.81919747,89.866,89.828,1.7046725]
[1772691214816,11.12780281,89.865,89.828,1.7046725]
[1772691216917,3.42515527,89.86,89.829,11.1322624]
[1772691217619,3.42515527,89.86,89.823,11.13289739]
[1772691218513,3.42515527,89.86,89.824,1.85895876]
[1772691219213,3.42515527,89.86,89.821,27.83313479]
[1772691219214,11.12854583,89.859,89.826,1.85895876]
[1772691221220,11.12854583,89.859,89.827,12.99146902]
[1772691221524,11.12854583,89.859,89.828,1.85895876]
[1772691222512,3.42515528,89.87,89.83,1.85895876]
[1772691222722,1e-08,89.87,89.83,1.85895876]
[1772691224625,1e-08,89.87,89.832,1.85895876]
[1772691226713,1e-08,89.87,89.834,1.85895876]
[1772691228712,3.42515528,89.87,89.836,1.85895876]
[1772691228920,3.42515528,89.87,89.835,11.13151889]
[1772691229912,3.42515527,89.86,89.83,1.85895876]
[1772691231035,11.12854583,89.859,89.832,1.85895876]
[1772691232428,11.12743134,89.868,89.832,1.85895876]
[1772691232631,1e-08,89.87,89.834,1.85895876]
[1772691233439,1e-08,89.87,89.836,1.85895876]
[1772691235920,1e-08,89.87,89.838,1.85895876]
[1772691238045,1e-08,89.87,89.84,1.85895876]
[1772691240850,1e-08,89.87,89.844,1.85895876]
[1772691241046,1e-08,89.88,89.846,1.83204744]
[1772691241227,1e-08,89.88,89.841,38.95771418]
[1772691241228,1e-08,89.88,89.848,1.83204744]
[1772691241833,1e-08,89.89,89.854,1.83204744]
[1772691242958,1e-08,89.89,89.859,1.83204744]
[1772691243156,27.79973269,89.929,89.858,3.69383402]
[1772691243157,0.2,89.93,89.862,1.83204744]
[1772691243453,0.2,89.93,89.879,0.28432314]
[1772691243745,0.2,89.93,89.891,0.28432314]
[1772691243952,0.2,89.93,89.894,1.83204744]
[1772691244326,0.2,89.94,89.894,1.83204744]
[1772691244759,0.2,89.94,89.896,2.11637058]
[1772691245232,11.7312948,89.939,89.896,1.83204744]
[1772691245848,0.2,89.94,89.896,1.83204744]
[1772691246045,0.2,89.94,89.899,1.83204744]
[1772691247443,0.2,89.94,89.885,0.94204546]
[1772691247444,1e-08,89.94,89.902,2.11637058]
[1772691248624,1e-08,89.95,89.905,1.83204744]
[1772691248825,1.44248997,89.999,89.913,3.69383402]
[1772691249030,1.44248997,89.999,89.926,1.83204744]
[1772691249243,1.44248997,89.999,89.942,1.83204744]
[1772691249443,1.44248997,89.999,89.951,1.83204744]
[1772691249640,1.44403663,89.997,89.955,1.83204744]
[1772691249837,1.44403663,89.997,89.945,38.91266884]
[1772691250043,1.7029442,89.989,89.945,38.91266884]
[1772691250530,1.7029442,89.979,89.932,11.11951252]
[1772691250735,1.7029442,89.979,89.932,38.91829382]
[1772691250935,1.7029442,89.997,89.933,0.28432314]
[1772691251434,11.11160496,89.996,89.934,38.91742832]
[1772691251640,1.7029442,89.995,89.934,38.91742832]
[1772691251942,1.7029442,89.995,89.935,1.83204744]
[1772691252334,1.7029442,89.995,89.939,1.83204744]
[1772691252646,1.7029442,89.995,89.945,1.83204744]
[1772691254537,1.7029442,89.993,89.947,1.83204744]
[1772691255543,1.7029442,89.993,89.949,1.83204744]
[1772691255849,27.770955,90.023,89.949,1.83204744]
[1772691255850,1.7029442,90.018,89.955,1.83204744]
[1772691256849,1.7029442,90.016,89.957,1.83204744]
[1772691257049,1.7029442,90.016,89.959,1.83204744]
[1772691257252,1.7029442,90.016,89.96,1.83204744]
[1772691257750,1.7029442,90.016,89.962,1.83204744]
[1772691257951,1.7029442,90.016,89.964,1.83204744]
[1772691258157,1.7029442,90.016,89.963,0.28432314]
[1772691258158,1.7029442,90.022,89.974,1.83204744]
[1772691258854,1.81853325,90.019,89.976,1.85345038]
[1772691262235,1.81853325,90.017,89.977,11.11395134]
[1772691262439,1.81853325,90.017,89.978,1.85345038]
[1772691263161,11.10834249,90.023,89.978,1.85345038]
[1772691263360,0.2,90.03,89.981,1.85345038]
[1772691263548,0.2,90.03,89.983,1.85345038]
[1772691263744,0.2,90.03,89.993,1.85345038]
[1772691263951,0.2,90.03,89.995,1.85345038]
[1772691264351,1.81853325,90.029,89.997,1.85345038]
[1772691264653,1.81853325,90.027,89.996,11.11160496]
[1772691265256,1.81853325,90.027,89.997,1.85345038]
[1772691265642,1.81853325,90.027,89.996,38.89061736]
[1772691265863,1.81853325,90.027,89.996,11.11160496]
[1772691266269,1.81853325,90.025,89.982,1.85345038]
[1772691267157,11.10790216,90.026,89.982,1.85345038]
[1772691267158,1.72660269,90.019,89.982,1.85345038]
[1772691270163,1.72660269,90.017,89.983,11.11321027]
[1772691271582,1.72660269,90.017,89.982,1.85345038]
[1772691271583,11.10913615,90.016,89.982,1.85345038]
[1772691271767,1.72660269,90.009,89.977,11.11385766]
[1772691272562,1.72660269,90.009,89.978,1.80490648]
[1772691274966,1.72660269,90.008,89.979,12.91861078]
[1772691275470,1.72660269,90.008,89.979,11.1137043]
[1772691276172,1.72660269,90.008,89.965,1.80490648]
[1772691276550,1.72660269,90.008,89.97,11.11481604]
[1772691277759,1.72660269,90.006,89.97,11.11481604]
[1772691278054,1.72660269,90.006,89.966,11.11528828]
[1772691278257,1.72660269,89.999,89.97,11.11481604]
[1772691278555,1.72660269,89.999,89.971,1.80490648]
[1772691279263,1.72660269,89.999,89.965,1.80490648]
[1772691279473,1.72660269,89.989,89.951,1.80490648]
[1772691279672,11.11259279,89.988,89.956,11.11643096]
[1772691279879,1.72660269,89.987,89.959,11.1160812]
[1772691281465,1.72660269,89.987,89.956,1.80490648]
[1772691281661,1.72660269,89.987,89.958,11.11626885]
[1772691281861,11.11142127,89.998,89.959,1.80490648]
[1772691282269,27.77193912,90.019,89.959,1.80490648]
[1772691282478,38.88111266,90.018,89.959,1.80490648]
[1772691282789,3.41458087,90.01,89.959,1.80490648]
[1772691283980,11.11012354,90.008,89.961,1.80490648]
[1772691284476,12.74891588,90.008,89.961,1.80490648]
[1772691286081,1.64024731,90.007,89.963,1.80490648]
[1772691290588,1.64210958,89.999,89.964,11.11555733]
[1772691290769,1.64210958,89.999,89.963,1.83778808]
[1772691291981,1.64424155,89.997,89.963,12.9534229]
[1772691294474,1.64618213,89.995,89.963,12.9534229]
[1772691294677,1.64618213,89.995,89.963,1.83778808]
[1772691295886,1.64826732,89.993,89.963,1.83778808]
[1772691296181,1.64826732,89.989,89.958,11.11628958]
[1772691296371,1.64826732,89.989,89.958,12.95407766]
[1772691296569,1.64826732,89.989,89.959,1.83778808]
[1772691298373,1.65101692,89.987,89.952,1.83778808]
[1772691298581,1.65235331,89.979,89.952,1.83778808]
[1772691299579,1.65370523,89.977,89.952,1.83778808]
[1772691300788,3.41458087,89.98,89.949,0.62953684]
[1772691300789,1.65504266,89.975,89.949,0.62953684]
[1772691300978,1.65504266,89.959,89.917,1.83778808]
[1772691301378,1.65632915,89.991,89.921,1.83778808]
[1772691301592,1.65632915,90.001,89.937,1.83778808]
[1772691301786,11.1107295,90.004,89.949,1.83778808]
[1772691301988,11.1107295,90.004,89.955,1.83778808]
[1772691302573,1.65829779,90.003,89.955,1.83778808]
[1772691302774,11.1108642,90.002,89.956,11.11654586]
[1772691303080,1.65829779,89.999,89.957,1.83778808]
[1772691303598,11.1108642,90.002,89.957,1.83778808]
[1772691304303,3.41458087,90.0,89.957,1.83778808]
[1772691304592,1.66078139,89.989,89.952,11.11703187]
[1772691304778,1.66078139,89.979,89.947,11.11758099]
[1772691304979,1.66078139,89.977,89.947,11.11758099]
[1772691305274,1.66078139,89.999,89.948,1.83778808]
[1772691305480,1.66202868,89.989,89.948,1.83778808]
[1772691305780,1.86344657,89.979,89.941,11.11836307]
[1772691305981,1.86344657,89.969,89.927,3.69383402]
[1772691306284,1.86344657,89.969,89.924,38.92153293]
[1772691307080,1.86344657,89.969,89.876,4.82477569]
[1772691307081,1.86344657,89.959,89.918,11.12124379]
[1772691307398,1.86344657,89.949,89.916,11.12140773]
[1772691307794,1.86344657,89.949,89.918,11.12124379]
[1772691309200,1.86344657,89.947,89.915,1.83778808]
[1772691309383,1.86344657,89.939,89.891,1.83778808]
[1772691309584,1.86344657,89.939,89.892,1.83778808]
[1772691311406,1.86344657,89.947,89.896,1.83778808]
[1772691311787,11.11783235,89.946,89.896,1.83778808]
[1772691311986,1.86344657,89.945,89.896,1.83778808]
[1772691312894,11.11802899,89.944,89.898,1.83778808]
[1772691313298,1.86344657,89.959,89.9,1.83778808]
[1772691313497,1.86344657,89.958,89.906,1.83778808]
[1772691316589,11.11617514,89.959,89.9,3.69383402]
[1772691316590,1.86344657,89.956,89.908,1.83778808]
[1772691318910,1.73589051,89.965,89.915,1.78064489]
[1772691319911,1.73589051,89.959,89.915,1.78064489]
[1772691321497,1.73589051,89.957,89.917,1.78064489]
[1772691325111,1.73589051,89.957,89.919,1.78064489]
[1772691325499,1.73589051,89.955,89.919,1.78064489]
[1772691327519,1.73589051,89.955,89.92,38.92348754]
[1772691327711,1.73589051,89.955,89.921,1.90160579]
[1772691329017,1.73589051,89.955,89.922,38.92262182]
[1772691329217,1.73589051,89.955,89.923,1.90160579]
[1772691330318,1.83010309,89.954,89.923,1.90160579]
[1772691331111,1.83010309,89.952,89.924,11.12050175]
[1772691331637,3.41773956,89.95,89.924,11.12050175]
[1772691331824,1.83010309,89.949,89.924,11.12050175]
[1772691332723,1.83010309,89.979,89.925,1.90160579]
[1772691332925,1.83010309,89.969,89.925,1.90160579]
[1772691333120,3.41773956,89.96,89.926,11.12025443]
[1772691333430,1.83010309,89.959,89.926,11.12025443]
[1772691333800,1.83010309,89.949,89.926,11.12025443]
[1772691335625,1.83010309,89.949,89.923,1.90160579]
[1772691337217,1.83010309,89.948,89.923,1.90160579]
[1772691337612,1.83010309,89.948,89.917,13.02297327]
[1772691338333,1.83010309,89.948,89.918,1.90160579]
[1772691338723,1.83010309,89.946,89.9,27.80841839]
[1772691339034,1.83010309,89.939,89.901,11.12334679]
[1772691339222,1.83010309,89.939,89.902,1.90160579]
[1772691341225,3.41773956,89.93,89.903,11.12309934]
[1772691341418,1.83010309,89.929,89.903,11.12309934]
[1772691344139,1.83010309,89.928,89.903,11.12309934]
[1772691345228,1.83010309,89.926,89.903,11.12309934]
[1772691346735,1.83010309,89.926,89.893,1.90160579]
[1772691347313,3.41773956,89.93,89.895,1.90160579]
[1772691347314,1.83010309,89.924,89.895,1.90160579]
[1772691348613,1.73941707,89.919,89.886,11.12520303]
[1772691349014,1.73941707,89.909,89.886,11.12520303]
[1772691350442,1.73941707,89.909,89.887,1.75533351]
[1772691350731,1.73941707,89.915,89.887,1.75533351]
[1772691350932,11.12161485,89.915,89.887,1.75533351]
[1772691351115,1.73941707,89.914,89.887,1.75533351]
[1772691351735,1.73941707,89.914,89.889,1.75533351]
[1772691354323,1.73941707,89.914,89.89,11.12470797]
[1772691354723,0.28432314,89.949,89.891,1.75533351]
[1772691354724,1.73941707,89.935,89.891,1.75533351]
[1772691354927,3.41773956,89.93,89.891,1.75533351]
[1772691355129,1.73941707,89.929,89.891,1.75533351]
[1772691355639,1.73941707,89.939,89.891,1.75533351]
[1772691355938,1.73941707,89.939,89.895,1.75533351]
[1772691356529,1.73941707,89.939,89.897,1.75533351]
[1772691358824,1.73941707,89.948,89.899,1.75533351]
[1772691360341,1.73941707,89.958,89.905,1.75533351]
[1772691360926,1.73941707,89.958,89.907,2.03965665]
[1772691361225,1.73941707,89.958,89.915,1.75533351]
[1772691362441,1.73941707,89.956,89.915,1.75533351]
[1772691363144,1.73941707,89.956,89.917,1.75533351]
[1772691363722,1.73941707,89.954,89.917,1.75533351]
[1772691365248,1.73941707,89.954,89.919,1.75533351]
[1772691366830,1.73941707,89.952,89.919,1.75533351]
[1772691367031,1.73941707,89.949,89.918,11.12124379]
[1772691367242,3.41773956,89.95,89.909,11.12235704]
[1772691367243,1.73941707,89.947,89.909,11.12235704]
[1772691367430,1.73941707,89.947,89.91,1.75533351]
[1772691369542,1.73941707,89.947,89.912,1.75533351]
[1772691370541,11.11704956,89.952,89.912,1.75533351]
[1772691370947,1.73941707,89.952,89.914,1.75533351]
[1772691374331,1.73941707,89.952,89.916,1.75533351]
[1772691376450,1.73941707,89.952,89.918,1.75533351]
[1772691377342,1.73941707,89.952,89.917,38.92478618]
[1772691377343,1.73941707,89.988,89.921,1.75533351]
[1772691377541,1.73941707,89.988,89.925,1.75533351]
[1772691377755,1.73941707,89.988,89.939,1.75533351]
[1772691377944,1.73941707,90.009,89.95,0.28432314]
[1772691378258,11.11000011,90.009,89.955,1.75533351]
[1772691378431,1.73941707,90.008,89.955,1.75533351]
[1772691378629,1.73941707,90.006,89.96,0.14216157]
[1772691378834,1.73941707,90.006,89.965,1.73401306]
[1772691379844,1.78216763,90.018,89.965,1.73401306]
[1772691381634,1.78216763,90.016,89.967,1.73401306]
[1772691383631,1.78216763,90.014,89.969,1.73401306]
[1772691384867,1.78216763,90.009,89.969,1.73401306]
[1772691385152,1.78216763,89.999,89.963,11.11557944]
[1772691385650,0.2,90.02,89.948,1.73401306]
[1772691385651,1.78216763,89.989,89.948,1.73401306]
[1772691385859,1.78216763,89.989,89.949,11.11741097]
[1772691386155,1.78216763,89.989,89.95,1.73401306]
[1772691387640,1.86347933,89.987,89.952,1.81037935]
[1772691387837,1.86347933,89.987,89.946,11.11770417]
[1772691388029,1.86347933,89.979,89.924,1.81037935]
[1772691388261,1.86347933,89.969,89.926,1.81037935]
[1772691390157,1.86347933,89.967,89.928,1.81037935]
[1772691391248,1.86347933,89.959,89.928,1.81037935]
[1772691392453,1.86347933,89.959,89.93,1.81037935]
[1772691393531,1.86347933,89.97,89.93,1.81037935]
[1772691393837,1.86347933,89.979,89.935,1.81037935]
[1772691394454,1.86347933,89.979,89.936,38.91656288]
[1772691394658,1.86347933,89.979,89.937,1.81037935]
[1772691395250,1.86347933,89.977,89.937,1.81037935]
[1772691396348,38.89839738,89.978,89.937,1.81037935]
[1772691396349,1.86347933,89.969,89.937,1.81037935]
[1772691396552,1.86347933,89.967,89.938,11.1187707]
[1772691397258,1.86347933,89.959,89.925,11.12037809]
[1772691398230,1.86347933,89.959,89.926,1.81037935]
[1772691399064,1.86347933,89.957,89.927,11.12013077]
[1772691399353,1.86347933,89.957,89.928,1.81037935]
[1772691401048,1.86347933,89.957,89.929,11.11988346]
[1772691401552,1.86347933,89.957,89.93,1.81037935]
[1772691401736,0.28432314,89.989,89.93,1.81037935]
[1772691401737,1.86347933,89.977,89.93,1.81037935]
[1772691401939,1.86347933,89.969,89.93,1.81037935]
[1772691403346,1.86347933,89.967,89.931,12.93001551]
[1772691403649,1.86347933,89.967,89.932,1.81037935]
[1772691406673,1.86347933,89.967,89.916,0.28432314]
[1772691406674,1.86347933,89.965,89.934,1.81037935]
[1772691408061,1.86347933,89.965,89.933,11.11938887]
[1772691408062,1.86347933,89.965,89.936,1.81037935]
[1772691408266,1.86347933,89.963,89.936,1.81037935]
[1772691409565,1.70496716,89.987,89.936,1.81037935]
[1772691409860,1.70496716,89.967,89.937,11.11889433]
[1772691410441,1.70496716,89.967,89.926,1.73105267]
[1772691410641,1.70496716,89.967,89.927,1.73105267]
[1772691413071,1.70496716,89.965,89.929,1.73105267]
[1772691416174,1.70496716,89.963,89.931,1.73105267]
[1772691419178,1.70496716,89.963,89.933,1.73105267]
[1772691419660,1.70496716,89.961,89.933,1.73105267]
[1772691421271,1.70496716,89.959,89.934,11.11926523]
[1772691422554,1.70496716,89.959,89.933,1.73105267]
[1772691422971,1.70496716,89.959,89.933,12.8503841]
[1772691423773,1.70496716,89.957,89.934,1.73105267]
[1772691424159,61.35000213,90.003,89.934,1.73105267]
[1772691424160,11.11412212,89.976,89.934,1.73105267]
[1772691424466,1.70496716,89.975,89.934,1.73105267]
[1772691425976,3.41323605,89.97,89.936,1.73105267]
[1772691426178,1.70496716,89.969,89.935,11.1191416]
[1772691427276,1.70496716,89.969,89.935,12.85019427]
[1772691428088,11.11506313,89.968,89.935,12.85019427]
[1772691428387,1.70496716,89.967,89.935,12.85019427]
[1772691428574,1.70496716,89.967,89.936,1.73105267]
[1772691431185,3.41323605,89.97,89.936,1.73105267]
[1772691431186,1.85132153,89.965,89.937,11.11889433]
[1772691431590,11.11531022,89.966,89.911,3.69383402]
[1772691431591,1.85132153,89.959,89.932,11.11941966]
[1772691431784,1.85132153,89.959,89.925,11.12031281]
[1772691432376,1.85132153,89.949,89.925,11.12031281]
[1772691432987,1.85132153,89.949,89.92,11.12088604]
[1772691433195,1.85132153,89.947,89.92,11.12088604]
[1772691434400,1.85132153,89.947,89.921,1.69883748]
[1772691436293,1.85132153,89.96,89.923,1.69883748]
[1772691436491,1.85132153,89.969,89.923,1.69883748]
[1772691437996,1.85132153,89.959,89.923,1.69883748]
[1772691438394,1.85132153,89.959,89.913,27.80464409]
[1772691438395,1.85132153,89.979,89.925,1.69883748]
[1772691438697,11.11315466,89.984,89.93,1.84645482]
[1772691438885,11.11315466,89.984,89.936,1.84645482]
[1772691439202,1.7074646,89.983,89.936,1.84645482]
[1772691439902,11.11333377,89.982,89.938,1.84645482]
[1772691440302,1.7074646,89.981,89.938,1.84645482]
[1772691443097,1.7074646,89.981,89.94,1.84645482]
[1772691444303,1.7074646,89.988,89.942,1.84645482]
[1772691444501,12.82017083,89.988,89.946,1.84645482]
[1772691444902,1.7074646,89.987,89.946,1.84645482]
[1772691445405,3.41577472,90.0,89.933,1.84645482]
[1772691445406,1.7074646,89.969,89.933,1.84645482]
[1772691448687,1.6989306,89.975,89.935,1.84318193]
[1772691450705,1.6989306,89.969,89.937,1.84318193]
[1772691451103,1.6989306,89.969,89.936,11.11901796]
[1772691451913,1.6989306,89.959,89.931,12.96281301]
[1772691452704,1.6989306,89.957,89.931,12.96281301]
[1772691452911,1.6989306,89.957,89.931,11.11963108]
[1772691453208,1.6989306,89.957,89.931,9.26950138]
[1772691454300,1.50049512,89.939,89.891,11.12458421]
[1772691454503,1.50049512,89.939,89.892,1.84318193]
[1772691454705,11.12000711,89.928,89.894,1.84318193]
[1772691455016,1.50011865,89.927,89.894,1.84318193]
[1772691456516,11.12025443,89.926,89.896,1.84318193]
[1772691458219,1.50011865,89.927,89.896,1.84318193]
[1772691458599,1.50011865,89.927,89.898,1.84318193]
[1772691460219,1.5018798,89.934,89.9,1.84318193]
[1772691463609,3.41577472,89.93,89.902,1.84318193]
[1772691463815,1.50741459,89.929,89.901,11.12334679]
[1772691464021,1.50741459,89.929,89.895,11.12397756]
[1772691464411,1.50741459,89.929,89.895,12.96715949]
[1772691464716,1.50741459,89.929,89.896,1.84318193]
[1772691466214,1.51008754,89.919,89.878,1.84318193]
[1772691466816,1.51140104,89.909,89.878,1.84318193]
[1772691467413,1.51140104,89.927,89.878,1.84318193]
[1772691467734,1.51269944,89.919,89.878,1.84318193]
[1772691470230,1.51650586,89.917,89.88,1.71251909]
[1772691472431,1.52018262,89.924,89.882,1.71251909]
[1772691472640,1.52018262,89.922,89.882,1.71251909]
[1772691473838,1.52138017,89.92,89.884,1.71251909]
[1772691474512,1.52138017,89.919,89.884,1.71251909]
[1772691474832,11.12087276,89.921,89.884,1.71251909]
[1772691475214,12.64343671,89.921,89.884,1.71251909]
[1772691476131,12.64343671,89.921,89.886,1.71251909]
[1772691477408,1.52489089,89.92,89.888,1.71251909]
[1772691478214,1.52603435,89.919,89.888,1.71251909]
[1772691479122,12.64840847,89.918,89.889,11.12483173]
[1772691479316,12.64840847,89.918,89.89,1.71251909]
[1772691480432,1.52828203,89.917,89.89,1.71251909]
[1772691481516,1.52828203,89.917,89.892,1.71251909]
[1772691481761,1.53047836,89.929,89.892,1.71251909]
[1772691482530,1.53155765,89.909,89.891,11.12458421]
[1772691483130,1.53155765,89.909,89.885,1.71251909]
[1772691483618,1.53262454,89.908,89.886,11.12520303]
[1772691485316,1.53367917,89.914,89.887,1.71251909]
[1772691485531,3.41577472,89.92,89.887,1.71251909]
[1772691486139,11.1206249,89.924,89.887,1.71251909]
[1772691486720,11.11864708,89.939,89.887,1.71251909]
[1772691487134,12.65321067,89.949,89.892,1.71251909]
[1772691487336,12.65321067,89.949,89.896,1.71251909]
[1772691487632,1.53575224,89.949,89.898,1.71251909]
[1772691487833,1.53677095,89.959,89.904,1.71251909]
[1772691488144,1.53677095,89.959,89.906,1.71251909]
[1772691488145,1.53677095,89.949,89.906,1.71251909]
[1772691488937,11.11640293,89.958,89.906,1.71251909]
[1772691489435,11.11640293,89.958,89.908,1.71251909]
[1772691489840,12.65517633,89.958,89.908,1.71251909]
[1772691490042,31.20002972,89.98,89.911,1.71251909]
[1772691490337,6.85871406,90.029,89.919,1.71251909]
[1772691490338,11.1137043,89.979,89.919,1.71251909]
[1772691490645,11.1137043,89.979,89.925,1.71251909]
[1772691491033,11.11314773,89.984,89.935,1.71251909]
[1772691491537,1.5397574,89.987,89.937,1.71251909]
[1772691494222,1.54264213,89.985,89.939,1.71251909]
[1772691495841,1.54451048,89.979,89.939,1.71251909]
[1772691496428,1.54451048,89.979,89.941,1.71251909]